bitfinex/quotes_SOLUSD_20251118
["timestamp","ask_amount","ask_price","bid_price","bid_amount"]
[1763432870049,18.82096,133.52,133.4,9.78882769]
[1763432870249,18.82096,133.52,133.48,5.9127048]
[1763432870471,18.82096,133.52,133.49,5.9127048]
[1763432870679,0.7,133.52,133.49,5.9127048]
[1763432870972,0.7,133.51,133.49,5.9127048]
[1763432871185,2.0,133.6,133.4,9.78882769]
[1763432871186,0.7,133.55,133.5,5.9127048]
[1763432871350,0.7,133.55,133.53,5.9127048]
[1763432873756,18.12096,133.56,133.54,5.9127048]
[1763432874280,18.82096,133.56,133.54,5.9127048]
[1763432875551,18.82096,133.56,133.5,0.7]
[1763432875876,18.82096,133.56,133.45,0.74934432]
[1763432875877,0.7,133.55,133.46,0.7]
[1763432876051,0.7,133.55,133.5,5.9127048]
[1763432876772,0.7,133.55,133.43,18.12096]
[1763432876773,0.7,133.55,133.51,5.9127048]
[1763432876973,18.12096,133.57,133.53,5.9127048]
[1763432877151,18.82096,133.57,133.54,5.9127048]
[1763432877351,18.82096,133.57,133.53,5.9127048]
[1763432877753,0.7,133.56,133.54,5.9127048]
[1763432878754,18.12096,133.57,133.54,5.9127048]
[1763432878954,0.7,133.56,133.54,5.9127048]
[1763432879154,0.7,133.56,133.53,5.9127048]
[1763432879834,0.7,133.56,133.5,0.7]
[1763432879949,0.7,133.56,133.53,5.9127048]
[1763432880154,0.7,133.56,133.45,0.7]
[1763432880353,0.7,133.56,133.51,5.9127048]
[1763432880572,0.7,133.56,133.52,5.9127048]
[1763432880784,0.7,133.56,133.54,5.9127048]
[1763432880954,0.1,133.61,133.55,5.9127048]
[1763432881165,0.1,133.61,133.47,5.9127048]
[1763432881166,18.12096,133.58,133.47,5.9127048]
[1763432881366,0.7,133.6,133.54,5.9127048]
[1763432881569,18.12096,133.57,133.54,5.9127048]
[1763432881998,0.7,133.59,133.56,5.9127048]
[1763432882499,0.7,133.59,133.55,5.9127048]
[1763432882819,0.7,133.59,133.52,0.7]
[1763432882820,0.1,133.61,133.58,5.9127048]
[1763432882961,0.1,133.61,133.6,5.9127048]
[1763432883927,0.1,133.66,133.6,6.6127048]
[1763432884077,0.1,133.66,133.65,5.9127048]
[1763432884418,0.1,133.66,133.65,12.5254096]
[1763432884905,0.1,133.66,133.65,9.81291461]
[1763432885291,0.1,133.66,133.65,0.7]
[1763432885496,0.1,133.66,133.65,9.11291461]
[1763432885885,0.1,133.66,133.65,9.81291461]
[1763432887093,0.1,133.66,133.65,9.11291461]
[1763432888609,0.1,133.66,133.65,9.81291461]
[1763432890709,0.1,133.66,133.65,9.11291461]
[1763432891585,0.1,133.66,133.65,9.81291461]
[1763432891979,0.1,133.69,133.65,9.81291461]
[1763432892179,0.1,133.69,133.68,9.11291461]
[1763432892391,0.1,133.69,133.68,9.82291461]
[1763432893002,0.1,133.69,133.68,9.11291461]
[1763432893309,0.1,133.69,133.68,9.82291461]
[1763432893999,0.66,133.77,133.7,9.11291461]
[1763432894295,0.66,133.77,133.76,9.11291461]
[1763432894905,0.66,133.77,133.75,9.11291461]
[1763432895407,0.1,133.78,133.76,9.11291461]
[1763432895585,0.1,133.78,133.77,9.11291461]
[1763432895908,0.76,133.84,133.83,9.11291461]
[1763432896088,0.76,133.84,133.82,9.11291461]
[1763432896714,0.76,133.84,133.73,18.86873536]
[1763432896927,0.76,133.84,133.8,9.11291461]
[1763432897225,9.87291461,133.84,133.74,0.61]
[1763432897520,0.76,133.84,133.78,9.11291461]
[1763432897687,9.77291461,133.83,133.78,9.11291461]
[1763432897992,0.66,133.83,133.7,9.11291461]
[1763432898193,0.1,133.84,133.7,9.11291461]
[1763432898194,0.1,133.84,133.77,0.61]
[1763432898397,0.66,133.83,133.82,9.11291461]
[1763432898608,0.1,133.84,133.82,9.11291461]
[1763432898919,0.82,133.84,133.83,9.11291461]
[1763432899294,0.82,133.84,133.82,9.11291461]
[1763432899506,0.82,133.84,133.83,9.11291461]
[1763432899701,0.82,133.84,133.82,9.11291461]
[1763432900223,0.1,133.84,133.83,9.11291461]
[1763432900809,2.90353428,133.93,133.8,9.11291461]
[1763432901008,0.72,133.89,133.81,0.51]
[1763432901318,0.72,133.89,133.78,0.51]
[1763432901319,9.83291461,133.89,133.78,0.51]
[1763432901505,18.84096,133.89,133.83,9.11291461]
[1763432901697,0.72,133.88,133.78,0.51]
[1763432901922,19.6217423,133.88,133.82,9.11291461]
[1763432902100,19.6217423,133.88,133.8,9.11291461]
[1763432902101,18.12096,133.84,133.8,9.11291461]
[1763432902321,18.12096,133.84,133.67,0.74811101]
[1763432902322,18.12096,133.84,133.81,9.11291461]
[1763432902501,0.72,133.83,133.8,9.11291461]
[1763432902916,0.72,133.83,133.67,0.74811101]
[1763432902917,9.78882769,133.82,133.67,0.74811101]
[1763432903095,0.72,133.83,133.77,9.11291461]
[1763432903295,18.12096,133.81,133.77,9.11291461]
[1763432903523,9.83291461,133.82,133.67,9.78882769]
[1763432903524,0.72,133.82,133.79,9.11291461]
[1763432903694,0.72,133.82,133.81,9.11291461]
[1763432904042,0.72,133.82,133.74,0.51]
[1763432904335,0.72,133.82,133.65,0.74822297]
[1763432904336,9.11291461,133.81,133.65,0.74822297]
[1763432904490,0.72,133.8,133.76,9.11291461]
[1763432904688,0.72,133.8,133.7,9.11291461]
[1763432904689,0.72,133.8,133.75,9.11291461]
[1763432905300,0.72,133.8,133.74,9.11291461]
[1763432905301,18.12096,133.78,133.74,9.11291461]
[1763432905598,18.12096,133.78,133.61,6.70310507]
[1763432905599,18.12096,133.76,133.71,9.11291461]
[1763432905792,27.23387461,133.76,133.6,9.11291461]
[1763432905993,0.72,133.75,133.72,9.11291461]
[1763432906407,0.72,133.75,133.66,0.51]
[1763432906613,0.72,133.75,133.71,9.11291461]
[1763432906797,0.72,133.75,133.7,9.11291461]
[1763432907208,0.72,133.75,133.73,9.11291461]
[1763432907404,18.84096,133.75,133.73,9.11291461]
[1763432907606,0.72,133.75,133.68,0.51]
[1763432907921,0.72,133.77,133.68,0.51]
[1763432908127,0.72,133.77,133.75,9.11291461]
[1763432908603,0.72,133.77,133.68,0.51]
[1763432908797,0.72,133.77,133.74,9.11291461]
[1763432909020,0.72,133.77,133.75,9.11291461]
[1763432909397,0.72,133.77,133.74,9.11291461]
[1763432909842,0.72,133.77,133.75,9.11291461]
[1763432910713,0.72,133.81,133.76,9.11291461]
[1763432910914,9.11291461,133.86,133.8,9.11291461]
[1763432911118,0.72,133.84,133.81,9.11291461]
[1763432911501,0.72,133.86,133.83,9.11291461]
[1763432911707,0.72,133.86,133.81,9.11291461]
[1763432911899,9.11291461,133.85,133.8,9.11291461]
[1763432912103,0.72,133.86,133.8,9.11291461]
[1763432912104,10.50882769,133.86,133.8,9.11291461]
[1763432912404,0.72,133.85,133.8,9.11291461]
[1763432912846,27.95387461,133.85,133.8,9.11291461]
[1763432913001,27.95387461,133.85,133.77,9.11291461]
[1763432913002,9.11291461,133.83,133.77,9.11291461]
[1763432913513,0.72,133.82,133.78,9.11291461]
[1763432914126,0.72,133.82,133.8,9.11291461]
[1763432914334,0.72,133.82,133.79,9.11291461]
[1763432914703,0.72,133.82,133.72,0.51]
[1763432914922,0.72,133.82,133.73,0.51]
[1763432915211,18.84096,133.82,133.78,9.11291461]
[1763432915636,0.72,133.81,133.78,9.11291461]
[1763432915845,0.72,133.81,133.79,9.11291461]
[1763432916042,0.72,133.81,133.78,9.11291461]
[1763432916343,0.72,133.81,133.77,9.11291461]
[1763432916539,0.72,133.81,133.72,0.51]
[1763432916849,0.72,133.81,133.73,9.11291461]
[1763432916850,9.11291461,133.78,133.73,9.11291461]
[1763432917010,18.9017423,133.8,133.75,9.11291461]
[1763432917211,18.9017423,133.8,133.74,9.11291461]
[1763432917212,0.72,133.79,133.74,9.11291461]
[1763432917422,9.11291461,133.78,133.73,9.11291461]
[1763432917743,18.9017423,133.78,133.72,9.11291461]
[1763432917921,18.9017423,133.78,133.67,0.51]
[1763432917922,9.83291461,133.77,133.71,9.11291461]
[1763432918122,18.12096,133.76,133.71,9.11291461]
[1763432918313,0.72,133.75,133.71,9.11291461]
[1763432918635,18.84096,133.75,133.7,9.11291461]
[1763432918850,18.84096,133.75,133.71,9.11291461]
[1763432919035,0.72,133.74,133.69,9.11291461]
[1763432919215,0.72,133.76,133.73,9.11291461]
[1763432919614,0.72,133.76,133.67,0.51]
[1763432919858,0.72,133.76,133.72,9.11291461]
[1763432920143,0.72,133.76,133.65,0.51]
[1763432920435,0.72,133.76,133.71,9.11291461]
[1763432920833,9.83291461,133.76,133.7,9.11291461]
[1763432921058,0.72,133.76,133.71,9.11291461]
[1763432921240,18.84096,133.75,133.72,9.11291461]
[1763432921749,0.72,133.74,133.72,9.11291461]
[1763432922052,9.78882769,133.79,133.73,9.11291461]
[1763432922224,0.71,133.75,133.69,0.51]
[1763432922424,0.71,133.75,133.73,9.11291461]
[1763432922732,0.71,133.75,133.64,0.51]
[1763432922938,0.71,133.75,133.7,9.11291461]
[1763432923150,0.71,133.75,133.71,9.11291461]
[1763432923951,0.71,133.75,133.66,0.51]
[1763432924123,0.71,133.75,133.71,9.11291461]
[1763432924323,0.71,133.75,133.66,0.51]
[1763432924651,0.71,133.75,133.71,9.11291461]
[1763432925028,9.11291461,133.74,133.69,9.11291461]
[1763432925423,0.71,133.73,133.64,0.51]
[1763432925654,0.71,133.73,133.69,9.11291461]
[1763432925823,0.71,133.73,133.64,0.51]
[1763432926156,0.71,133.73,133.7,9.11291461]
[1763432926846,0.71,133.73,133.71,9.11291461]
[1763432927022,0.71,133.76,133.72,9.11291461]
[1763432927224,0.71,133.76,133.74,9.11291461]
[1763432927661,0.71,133.76,133.73,9.11291461]
[1763432927827,0.71,133.76,133.71,9.11291461]
[1763432928023,18.12096,133.75,133.66,0.51]
[1763432928223,18.12096,133.75,133.71,9.11291461]
[1763432928444,0.71,133.74,133.7,9.11291461]
[1763432929867,0.71,133.74,133.69,9.11291461]
[1763432930440,0.71,133.74,133.7,9.11291461]
[1763432930855,18.12096,133.72,133.64,0.51]
[1763432931064,18.12096,133.72,133.68,9.11291461]
[1763432931230,0.71,133.71,133.68,9.11291461]
[1763432931435,9.82291461,133.71,133.66,9.11291461]
[1763432931632,9.82291461,133.71,133.65,9.11291461]
[1763432931633,18.12096,133.69,133.65,9.11291461]
[1763432931865,18.12096,133.69,133.61,0.71]
[1763432931866,18.12096,133.69,133.66,9.11291461]
[1763432932162,0.71,133.69,133.67,9.11291461]
[1763432932345,0.71,133.69,133.68,9.11291461]
[1763432933144,0.71,133.69,133.67,9.11291461]
[1763432933555,0.71,133.69,133.62,0.51]
[1763432933758,0.71,133.69,133.67,9.11291461]
[1763432933957,0.71,133.69,133.66,9.11291461]
[1763432934349,0.71,133.69,133.67,9.11291461]
[1763432934963,0.71,133.69,133.66,9.11291461]
[1763432935185,27.23387461,133.72,133.62,0.51]
[1763432935186,18.12096,133.72,133.62,0.51]
[1763432935342,0.71,133.71,133.67,9.11291461]
[1763432935739,0.71,133.71,133.61,0.2]
[1763432935740,0.71,133.71,133.68,9.11291461]
[1763432935969,0.71,133.71,133.61,0.71]
[1763432936143,18.12096,133.68,133.61,0.71]
[1763432936345,18.12096,133.68,133.65,9.11291461]
[1763432936588,0.71,133.7,133.66,9.11291461]
[1763432936794,9.82291461,133.71,133.65,9.11291461]
[1763432937085,0.71,133.71,133.65,9.11291461]
[1763432937383,0.71,133.7,133.65,9.11291461]
[1763432938072,0.71,133.7,133.66,9.11291461]
[1763432938441,0.71,133.7,133.61,0.2]
[1763432938442,0.71,133.7,133.69,9.11291461]
[1763432938678,0.71,133.7,133.68,9.11291461]
[1763432940585,0.71,133.72,133.69,9.11291461]
[1763432940757,9.11291461,133.76,133.71,9.11291461]
[1763432941077,9.11291461,133.76,133.62,28.65817864]
[1763432941078,9.11291461,133.78,133.67,0.51]
[1763432941286,27.23387461,133.78,133.73,9.11291461]
[1763432941439,0.71,133.77,133.73,9.11291461]
[1763432941879,0.71,133.77,133.72,9.11291461]
[1763432942177,9.11291461,133.76,133.67,0.51]
[1763432942482,0.71,133.75,133.71,9.11291461]
[1763432942787,0.71,133.75,133.72,9.11291461]
[1763432943343,0.71,133.75,133.67,0.51]
[1763432943344,0.71,133.75,133.71,9.11291461]
[1763432944403,0.71,133.75,133.64,0.51]
[1763432944404,9.11291461,133.74,133.64,0.51]
[1763432944694,18.83096,133.73,133.7,9.11291461]
[1763432944895,18.83096,133.73,133.69,9.11291461]
[1763432945193,0.71,133.72,133.69,9.11291461]
[1763432945695,0.71,133.72,133.7,9.11291461]
[1763432945907,0.71,133.75,133.71,9.11291461]
[1763432946191,163.5,133.82,133.74,9.11291461]
[1763432946192,0.71,133.77,133.74,9.11291461]
[1763432946394,9.11291461,133.79,133.73,9.11291461]
[1763432946395,0.71,133.76,133.73,9.11291461]
[1763432946876,0.71,133.76,133.73,5.88524282]
[1763432947192,0.71,133.76,133.72,5.88524282]
[1763432947687,0.71,133.76,133.67,0.51]
[1763432947688,0.71,133.76,133.71,5.88524282]
[1763432947891,0.71,133.76,133.67,0.51]
[1763432947892,0.71,133.76,133.72,5.88524282]
[1763432948280,6.59524282,133.76,133.65,6.39524282]
[1763432948495,6.59524282,133.76,133.71,5.88524282]
[1763432948670,0.71,133.75,133.71,5.88524282]
[1763432948870,0.71,133.75,133.7,5.88524282]
[1763432949105,18.12096,133.73,133.7,5.88524282]
[1763432949279,18.12096,133.73,133.62,15.93376436]
[1763432949280,18.12096,133.73,133.68,5.88524282]
[1763432949597,0.71,133.72,133.68,5.88524282]
[1763432949771,0.71,133.72,133.69,5.88524282]
[1763432950269,18.83096,133.75,133.71,5.88524282]
[1763432950468,18.83096,133.75,133.72,5.88524282]
[1763432950692,0.71,133.74,133.66,0.51]
[1763432950898,0.71,133.74,133.72,5.88524282]
[1763432951478,18.12096,133.77,133.73,5.88524282]
[1763432951678,5.88524282,133.79,133.73,5.88524282]
[1763432951894,0.69,133.76,133.74,5.88524282]
[1763432952098,0.69,133.76,133.73,5.88524282]
[1763432953001,0.69,133.76,133.72,5.88524282]
[1763432953779,0.69,133.76,133.65,5.88524282]
[1763432953780,0.69,133.76,133.74,5.88524282]
[1763432954516,165.5,133.86,133.65,12.03017949]
[1763432954517,0.69,133.75,133.65,6.14493667]
[1763432954804,0.69,133.75,133.71,5.88524282]
[1763432955106,0.69,133.75,133.72,5.88524282]
[1763432955714,0.69,133.77,133.74,5.88524282]
[1763432956008,33.55992914,133.89,133.65,12.03017949]
[1763432956009,0.69,133.82,133.76,5.88524282]
[1763432956180,6.57524282,133.81,133.69,18.12096]
[1763432956383,0.69,133.81,133.76,5.88524282]
[1763432956583,0.69,133.8,133.76,5.88524282]
[1763432956782,24.00620282,133.78,133.68,0.51]
[1763432956982,0.69,133.77,133.73,5.88524282]
[1763432957184,0.69,133.77,133.74,5.88524282]
[1763432957390,0.69,133.8,133.76,5.88524282]
[1763432957617,0.69,133.79,133.76,5.88524282]
[1763432957788,0.69,133.79,133.78,5.88524282]
[1763432959095,0.69,133.79,133.73,0.51]
[1763432959312,18.81096,133.79,133.7,0.51]
[1763432959494,18.81096,133.79,133.73,5.88524282]
[1763432959811,18.81096,133.79,133.66,9.78882769]
[1763432959812,0.7,133.78,133.68,0.51]
[1763432960016,0.7,133.78,133.76,5.88524282]
[1763432960811,0.7,133.78,133.68,0.51]
[1763432961005,0.7,133.78,133.74,5.88524282]
[1763432961307,0.7,133.78,133.68,0.51]
[1763432961508,0.7,133.78,133.72,5.88524282]
[1763432961509,18.12096,133.76,133.72,5.88524282]
[1763432961881,0.7,133.75,133.72,5.88524282]
[1763432962295,0.7,133.78,133.72,0.51]
[1763432962513,0.7,133.78,133.75,5.88524282]
[1763432963309,0.7,133.78,133.76,5.88524282]
[1763432964211,18.12096,133.79,133.75,5.88524282]
[1763432964395,0.7,133.78,133.75,5.88524282]
[1763432964797,0.7,133.78,133.69,0.51]
[1763432964999,0.7,133.78,133.74,5.88524282]
[1763432965509,0.7,133.78,133.76,5.88524282]
[1763432966021,0.7,133.78,133.66,27.90978769]
[1763432966022,0.7,133.78,133.7,0.51]
[1763432966184,0.7,133.82,133.77,5.88524282]
[1763432966389,0.7,133.82,133.79,5.88524282]
[1763432966610,18.82096,133.82,133.78,5.88524282]
[1763432967013,5.88524282,133.84,133.78,5.88524282]
[1763432967014,0.7,133.81,133.78,5.88524282]
[1763432967586,163.5,133.88,133.74,0.51]
[1763432967587,0.7,133.87,133.8,5.88524282]
[1763432967794,0.7,133.87,133.85,5.88524282]
[1763432968411,0.7,133.9,133.86,5.88524282]
[1763432968618,0.7,133.9,133.88,5.88524282]
[1763432968809,0.7,133.9,133.89,5.88524282]
[1763432969004,0.7,133.91,133.84,0.51]
[1763432969204,0.7,133.91,133.89,5.88524282]
[1763432970513,0.7,133.91,133.84,0.51]
[1763432970514,0.7,133.91,133.9,5.88524282]
[1763432972024,0.7,133.91,133.89,5.88524282]
[1763432972321,2.90353428,133.93,133.9,5.88524282]
[1763432972495,2.90353428,133.93,133.92,5.88524282]
[1763432972818,3.60353428,133.93,133.92,5.88524282]
[1763432973189,2.90353428,133.93,133.92,5.88524282]
[1763432976097,2.90353428,133.93,133.91,0.51]
[1763432976098,3.60353428,133.93,133.91,5.88524282]
[1763432976517,0.7,133.92,133.91,5.88524282]
[1763432976717,3.60353428,133.93,133.91,5.88524282]
[1763432976887,2.90353428,133.93,133.92,5.88524282]
[1763432977405,3.60353428,133.93,133.92,5.88524282]
[1763432977608,2.90353428,133.93,133.92,5.88524282]
[1763432978011,3.60353428,133.93,133.92,5.88524282]
[1763432978197,3.60353428,133.93,133.83,5.88524282]
[1763432978513,0.7,133.92,133.9,5.88524282]
[1763432979091,0.7,133.92,133.91,5.88524282]
[1763432979293,2.90353428,133.93,133.91,5.88524282]
[1763432979493,0.7,133.92,133.91,5.88524282]
[1763432979804,3.60353428,133.93,133.91,5.88524282]
[1763432980492,3.60353428,133.93,133.92,5.88524282]
[1763432980695,2.90353428,133.93,133.92,5.88524282]
[1763432981121,3.60353428,133.93,133.91,5.88524282]
[1763432981324,0.7,133.92,133.91,5.88524282]
[1763432981516,0.7,133.92,133.84,0.51]
[1763432981713,0.7,133.92,133.89,5.88524282]
[1763432982626,0.7,133.92,133.9,5.88524282]
[1763432983417,0.7,133.92,133.89,5.88524282]
[1763432983703,0.7,133.92,133.88,5.88524282]
[1763432983921,21.02449428,133.93,133.84,0.51]
[1763432983922,2.90353428,133.93,133.89,5.88524282]
[1763432984125,0.72,133.92,133.9,5.88524282]
[1763432984543,2.90353428,133.93,133.91,5.88524282]
[1763432985027,3.62353428,133.93,133.92,5.88524282]
[1763432985229,3.62353428,133.93,133.88,5.88524282]
[1763432985429,8.7887771,133.93,133.83,24.75341943]
[1763432985633,5.88524282,133.91,133.86,5.88524282]
[1763432985805,0.72,133.92,133.87,5.88524282]
[1763432986129,2.90353428,133.93,133.88,6.39524282]
[1763432986336,5.88524282,133.91,133.85,6.39524282]
[1763432986517,5.88524282,133.9,133.85,5.88524282]
[1763432986703,5.88524282,133.87,133.82,5.88524282]
[1763432986898,5.88524282,133.88,133.82,5.88524282]
[1763432987336,6.60524282,133.88,133.82,5.88524282]
[1763432987649,0.72,133.88,133.84,5.88524282]
[1763432987817,0.72,133.88,133.83,5.88524282]
[1763432988222,24.72620282,133.9,133.84,6.39524282]
[1763432988424,24.72620282,133.9,133.84,5.88524282]
[1763432988617,24.00620282,133.9,133.84,5.88524282]
[1763432988815,0.72,133.89,133.84,5.88524282]
[1763432989343,6.60524282,133.89,133.83,5.88524282]
[1763432989642,6.60524282,133.89,133.78,9.78882769]
[1763432989643,5.88524282,133.86,133.78,0.51]
[1763432989808,5.88524282,133.85,133.79,5.88524282]
[1763432990215,0.72,133.84,133.79,5.88524282]
[1763432990821,0.72,133.84,133.8,5.88524282]
[1763432991432,5.88524282,133.82,133.75,0.51]
[1763432991636,0.72,133.84,133.75,0.51]
[1763432991637,0.72,133.84,133.77,5.88524282]
[1763432991934,6.60524282,133.87,133.81,5.88524282]
[1763432992135,0.72,133.86,133.81,5.88524282]
[1763432992634,6.60524282,133.86,133.8,5.88524282]
[1763432993444,18.12096,133.89,133.77,5.88524282]
[1763432993445,5.88524282,133.83,133.77,5.88524282]
[1763432993755,0.72,133.85,133.76,5.88524282]
[1763432993756,5.88524282,133.82,133.76,5.88524282]
[1763432994046,24.00620282,133.82,133.75,5.88524282]
[1763432994250,6.60524282,133.81,133.73,0.51]
[1763432994439,5.88524282,133.8,133.74,5.88524282]
[1763432994626,0.72,133.8,133.75,5.88524282]
[1763432994815,0.72,133.79,133.75,5.88524282]
[1763432995739,5.88524282,133.81,133.76,5.88524282]
[1763432995740,0.72,133.81,133.76,5.88524282]
[1763432995936,18.12096,133.82,133.7,0.71]
[1763432995937,5.88524282,133.79,133.7,0.71]
[1763432996239,5.88524282,133.78,133.72,5.88524282]
[1763432996439,0.72,133.79,133.73,5.88524282]
[1763432996631,0.72,133.79,133.71,0.51]
[1763432996632,18.12096,133.82,133.75,5.88524282]
[1763432996814,6.60524282,133.81,133.75,5.88524282]
[1763432997212,6.60524282,133.8,133.74,5.88524282]
[1763432997624,0.72,133.8,133.74,5.88524282]
[1763432997945,18.84096,133.83,133.76,5.88524282]
[1763432998244,5.88524282,133.83,133.76,5.88524282]
[1763432998450,0.72,133.85,133.78,5.88524282]
[1763432998648,5.88524282,133.85,133.78,5.88524282]
[1763432998953,5.88524282,133.83,133.77,5.88524282]
[1763432999320,0.72,133.83,133.77,5.88524282]
[1763432999645,0.72,133.83,133.77,6.39524282]
[1763432999646,6.60524282,133.83,133.77,6.39524282]
[1763433000346,0.72,133.83,133.77,6.39524282]
[1763433000525,0.72,133.83,133.72,9.78882769]
[1763433000526,18.12096,133.86,133.79,5.88524282]
[1763433000733,0.72,133.87,133.81,5.88524282]
[1763433000918,169.38524282,133.92,133.83,5.88524282]
[1763433000919,0.72,133.89,133.83,5.88524282]
[1763433001117,3.62353428,133.93,133.82,1.25727245]
[1763433001319,9.5087771,133.93,133.86,5.88524282]
[1763433001527,0.72,133.92,133.86,5.88524282]
[1763433001923,5.88524282,133.91,133.85,0.51]
[1763433002141,5.88524282,133.91,133.85,6.39524282]
[1763433002343,6.60524282,133.92,133.85,6.39524282]
[1763433002717,6.60524282,133.92,133.86,5.88524282]
[1763433002718,0.72,133.92,133.86,5.88524282]
[1763433002942,6.60524282,133.92,133.86,5.88524282]
[1763433003117,0.72,133.92,133.86,5.88524282]
[1763433003316,6.60524282,133.92,133.86,5.88524282]
[1763433003530,2.90353428,133.93,133.88,5.88524282]
[1763433003752,2.90353428,133.93,133.89,5.88524282]
[1763433003920,2.90353428,133.93,133.9,0.51]
[1763433004241,0.72,133.92,133.83,0.51]
[1763433004655,0.72,133.92,133.79,0.74744001]
[1763433004656,5.88524282,133.85,133.77,0.51]
[1763433004833,6.60524282,133.84,133.78,5.88524282]
[1763433005249,5.88524282,133.82,133.76,5.88524282]
[1763433005453,5.88524282,133.8,133.73,5.88524282]
[1763433005759,18.84096,133.82,133.75,5.88524282]
[1763433005927,6.60524282,133.81,133.75,5.88524282]
[1763433006319,6.60524282,133.81,133.73,0.51]
[1763433006320,0.72,133.8,133.74,5.88524282]
[1763433006524,0.72,133.8,133.73,0.51]
[1763433006719,6.60524282,133.8,133.74,5.88524282]
[1763433006947,6.60524282,133.8,133.74,9.10400543]
[1763433006948,9.82400543,133.8,133.74,9.10400543]
[1763433007154,9.10400543,133.83,133.77,9.10400543]
[1763433007331,2.0,133.92,133.76,18.12096]
[1763433007332,9.10400543,133.87,133.76,18.12096]
[1763433007725,0.72,133.86,133.81,9.10400543]
[1763433007934,9.10400543,133.85,133.76,0.51]
[1763433008139,0.72,133.86,133.79,9.10400543]
[1763433008359,9.82400543,133.86,133.8,9.10400543]
[1763433008539,9.82400543,133.86,133.79,9.10400543]
[1763433008859,0.72,133.85,133.79,9.10400543]
[1763433009060,0.72,133.85,133.77,0.51]
[1763433009360,0.72,133.85,133.79,9.10400543]
[1763433009665,9.82400543,133.85,133.79,9.10400543]
[1763433009832,9.82400543,133.85,133.78,9.10400543]
[1763433010024,0.72,133.84,133.78,9.10400543]
[1763433010220,9.10400543,133.83,133.74,18.63096]
[1763433010434,0.72,133.84,133.77,9.10400543]
[1763433010435,9.82400543,133.84,133.77,9.10400543]
[1763433010737,0.72,133.83,133.78,9.10400543]
[1763433010926,18.12096,133.87,133.79,9.10400543]
[1763433011264,27.94496543,133.86,133.79,9.10400543]
[1763433011439,27.94496543,133.86,133.8,9.10400543]
[1763433011637,0.72,133.88,133.82,9.10400543]
[1763433011850,0.72,133.88,133.83,9.10400543]
[1763433012160,0.72,133.88,133.77,24.9436186]
[1763433012323,0.72,133.88,133.79,9.10400543]
[1763433012526,0.72,133.88,133.78,0.51]
[1763433012729,9.10400543,133.87,133.8,9.10400543]
[1763433012947,9.10400543,133.86,133.79,9.10400543]
[1763433013149,9.10400543,133.86,133.72,6.07510684]
[1763433013150,9.10400543,133.83,133.72,6.07510684]
[1763433013450,18.83096,133.86,133.76,9.10400543]
[1763433013451,9.10400543,133.82,133.76,9.10400543]
[1763433013637,18.12096,133.84,133.76,9.10400543]
[1763433013843,27.93496543,133.83,133.76,9.10400543]
[1763433014023,0.71,133.82,133.78,9.10400543]
[1763433014224,0.71,133.87,133.81,9.10400543]
[1763433014452,0.71,133.87,133.74,18.12096]
[1763433014453,0.71,133.91,133.86,9.10400543]
[1763433015230,0.71,133.91,133.85,9.10400543]
[1763433015541,9.81400543,133.91,133.85,9.10400543]
[1763433015739,0.71,133.91,133.85,9.10400543]
[1763433015933,27.22496543,133.92,133.81,0.51]
[1763433015934,9.81400543,133.9,133.81,0.51]
[1763433016127,0.71,133.9,133.84,9.10400543]
[1763433016328,0.71,133.9,133.85,9.10400543]
[1763433017031,0.71,133.9,133.86,9.10400543]
[1763433017226,0.71,133.9,133.87,9.10400543]
[1763433017547,12.71753971,133.93,133.86,9.10400543]
[1763433017753,0.71,133.92,133.86,9.10400543]
[1763433017939,9.81400543,133.92,133.85,9.61400543]
[1763433018136,0.71,133.92,133.85,9.61400543]